[Event "Mistrovství Čech mládeže 2023 - HD14"]
[Site "Harrachov, Czech Republic"]
[Date "2023.10.21"]
[Round "1.12"]
[White "Kopecká, Libuše"]
[Black "Ježek, Jakub"]
[Result "0-1"]
[TimeControl "90m + 30s"]
[WhiteElo "1077"]
[BlackElo "1642"]

1. e4 {[%clk 01:30:56]} {[%emt 00:00:03]} c5 {[%clk 01:30:38]} {[%emt
00:00:22]} 2. Nc3 {[%clk 01:31:04]} {[%emt 00:00:22]} Nc6 {[%clk 01:30:54]}
{[%emt 00:00:14]} 3. Nf3 {[%clk 01:30:44]} {[%emt 00:00:51]} d6 {[%clk
01:30:37]} {[%emt 00:00:46]} 4. Be2 {[%clk 01:27:52]} {[%emt 00:03:22]} g6
{[%clk 01:29:56]} {[%emt 00:01:10]} 5. d3 {[%clk 01:24:47]} {[%emt 00:03:35]}
Bg7 {[%clk 01:28:16]} {[%emt 00:02:11]} 6. Bd2 {[%clk 01:22:24]} {[%emt
00:02:53]} e6 {[%clk 01:28:26]} {[%emt 00:00:19]} 7. Qc1 {[%clk 01:14:11]}
{[%emt 00:08:43]} a6 {[%clk 01:27:04]} {[%emt 00:01:53]} 8. a4 {[%clk
01:11:34]} {[%emt 00:03:07]} Qc7 {[%clk 01:26:25]} {[%emt 00:01:09]} 9. O-O
{[%clk 01:08:43]} {[%emt 00:03:21]} Nge7 {[%clk 01:24:44]} {[%emt 00:02:11]} 10.
Ra3 {[%clk 01:04:40]} {[%emt 00:04:33]} O-O {[%clk 01:24:05]} {[%emt 00:01:09]}
11. Bh6 {[%clk 01:03:15]} {[%emt 00:01:55]} Nd4 {[%clk 01:20:25]} {[%emt
00:04:10]} 12. Nxd4 {[%clk 00:58:54]} {[%emt 00:04:52]} cxd4 {[%clk 01:20:54]}
{[%emt 00:00:01]} 13. Bxg7 {[%clk 00:56:30]} {[%emt 00:02:54]} Kxg7 {[%clk
01:20:57]} {[%emt 00:00:26]} 14. Nd1 {[%clk 00:54:47]} {[%emt 00:02:14]} e5
{[%clk 01:14:34]} {[%emt 00:06:52]} 15. c3 {[%clk 00:52:47]} {[%emt 00:02:30]}
Be6 {[%clk 01:07:17]} {[%emt 00:07:44]} 16. f4 {[%clk 00:50:02]} {[%emt
00:03:17]} f5 {[%clk 01:05:41]} {[%emt 00:02:06]} 17. fxe5 {[%clk 00:47:09]}
{[%emt 00:03:22]} dxe5 {[%clk 01:03:16]} {[%emt 00:02:55]} 18. exf5 {[%clk
00:45:54]} {[%emt 00:01:46]} Rxf5 {[%clk 00:56:31]} {[%emt 00:07:15]} 19. Nf2
{[%clk 00:43:33]} {[%emt 00:02:51]} Raf8 {[%clk 00:46:35]} {[%emt 00:10:26]} 20.
h3 {[%clk 00:39:16]} {[%emt 00:04:47]} Rf4 {[%clk 00:35:11]} {[%emt 00:11:54]}
21. Bf3 {[%clk 00:35:36]} {[%emt 00:04:09]} Nf5 {[%clk 00:17:05]} {[%emt
00:18:37]} 22. cxd4 {[%clk 00:33:31]} {[%emt 00:02:35]} Qxc1 {[%clk 00:17:26]}
{[%emt 00:00:09]} 23. Rxc1 {[%clk 00:33:49]} {[%emt 00:00:13]} Nxd4 {[%clk
00:17:47]} {[%emt 00:00:09]} 24. Rc7+ {[%clk 00:30:16]} {[%emt 00:04:02]} Kh8
{[%clk 00:15:39]} {[%emt 00:02:38]} 25. Rxb7 {[%clk 00:18:34]} {[%emt
00:12:11]} Nxf3+ {[%clk 00:15:41]} {[%emt 00:00:30]} 26. gxf3 {[%clk 00:18:31]}
{[%emt 00:00:33]} Rxf3 {[%clk 00:16:04]} {[%emt 00:00:07]} 27. Ng4 {[%clk
00:17:35]} {[%emt 00:01:25]} Rxh3 {[%clk 00:14:21]} {[%emt 00:02:13]} 28. Nxe5
{[%clk 00:16:43]} {[%emt 00:01:22]} Bd5 {[%clk 00:13:35]} {[%emt 00:01:16]} 29.
Rd7 {[%clk 00:14:26]} {[%emt 00:02:44]} Rh1# {[%clk 00:13:16]} {[%emt
00:00:18]} 0-1

[Event "Mistrovství Čech mládeže 2023 - HD14"]
[Site "Harrachov, Czech Republic"]
[Date "2023.10.21"]
[Round "1.13"]
[White "Rudlof, Adam"]
[Black "Archlebová, Eva"]
[Result "1-0"]
[TimeControl "90m + 30s"]
[WhiteElo "1639"]
[BlackElo "1065"]

1. e4 {[%clk 01:30:57]} {[%emt 00:00:02]} e5 {[%clk 01:30:56]} {[%emt
00:00:04]} 2. Nf3 {[%clk 01:31:22]} {[%emt 00:00:06]} Nc6 {[%clk 01:31:15]}
{[%emt 00:00:11]} 3. Bc4 {[%clk 01:31:47]} {[%emt 00:00:04]} Bc5 {[%clk
01:30:25]} {[%emt 00:01:20]} 4. O-O {[%clk 01:32:08]} {[%emt 00:00:10]} d6
{[%clk 01:29:45]} {[%emt 00:01:10]} 5. d3 {[%clk 01:32:24]} {[%emt 00:00:14]}
h6 {[%clk 01:29:44]} {[%emt 00:00:30]} 6. c3 {[%clk 01:32:37]} {[%emt
00:00:16]} Bg4 {[%clk 01:29:27]} {[%emt 00:00:47]} 7. Nbd2 {[%clk 01:32:26]}
{[%emt 00:00:41]} Nf6 {[%clk 01:29:25]} {[%emt 00:00:32]} 8. Re1 {[%clk
01:32:06]} {[%emt 00:00:48]} O-O {[%clk 01:28:05]} {[%emt 00:01:51]} 9. h3
{[%emt 00:01:09]} Be6 {[%clk 01:24:30]} {[%emt 00:04:00]} 10. Bb3 {[%clk
01:26:51]} {[%emt 00:05:11]} Qd7 {[%clk 01:20:48]} {[%emt 00:04:10]} 11. Nf1
{[%clk 01:24:14]} {[%emt 00:03:07]} d5 {[%clk 01:16:29]} {[%emt 00:04:49]} 12.
exd5 {[%clk 01:20:57]} {[%emt 00:03:50]} Bxd5 {[%clk 01:16:26]} {[%emt
00:00:32]} 13. Nxe5 {[%clk 00:59:32]} {[%emt 00:21:55]} Nxe5 {[%clk 01:14:39]}
{[%emt 00:02:16]} 14. Rxe5 {[%clk 00:59:48]} {[%emt 00:00:14]} Rae8 {[%clk
01:13:32]} {[%emt 00:01:34]} 15. Rxe8 {[%clk 00:58:44]} {[%emt 00:01:38]} Rxe8
{[%clk 01:13:16]} {[%emt 00:00:45]} 16. Be3 {[%emt 00:03:56]} Bxe3 {[%clk
01:06:32]} {[%emt 00:05:00]} 17. Nxe3 {[%clk 00:57:49]} {[%emt 00:00:13]} b6
{[%clk 01:04:25]} {[%emt 00:02:37]} 18. Nxd5 {[%clk 00:37:36]} {[%emt
00:20:43]} Nxd5 {[%clk 01:04:41]} {[%emt 00:00:13]} 19. Qd2 {[%clk 00:32:31]}
{[%emt 00:05:31]} Nf6 {[%clk 01:02:44]} {[%emt 00:02:28]} 20. Bc2 {[%emt
00:06:30]} Qb5 {[%clk 01:01:40]} {[%emt 00:00:04]} 21. b4 {[%clk 00:16:53]}
{[%emt 00:03:46]} a5 22. a4 {[%clk 00:12:31]} {[%emt 00:12:21]} Qd5 {[%clk
00:58:17]} 23. bxa5 Qxa5 24. Re1 {[%emt 00:02:33]} Rxe1+ {[%clk 00:56:59]}
{[%emt 00:00:19]} 25. Qxe1 {[%emt 00:00:17]} Qd5 {[%emt 00:01:47]} 26. d4
{[%emt 00:00:12]} Qa2 {[%emt 00:05:40]} 27. Qd2 {[%emt 00:00:34]} Qa1+ {[%clk
00:56:15]} {[%emt 00:00:10]} 28. Kh2 {[%emt 00:01:27]} Qb2 {[%clk 00:54:34]}
{[%emt 00:00:40]} 29. Bh7+ {[%emt 00:03:07]} Kxh7 {[%clk 00:52:08]} {[%emt
00:00:07]} 30. Qxb2 {[%clk 00:07:57]} {[%emt 00:00:05]} g6 {[%clk 00:51:57]}
{[%emt 00:00:40]} 31. c4 {[%clk 00:08:14]} {[%emt 00:00:14]} Ne4 {[%clk
00:52:02]} {[%emt 00:00:22]} 32. c5 {[%clk 00:08:22]} {[%emt 00:00:24]} bxc5
{[%clk 00:51:42]} {[%emt 00:00:50]} 33. dxc5 {[%clk 00:08:43]} {[%emt
00:00:09]} Nxc5 {[%clk 00:51:29]} {[%emt 00:00:41]} 34. a5 {[%clk 00:09:09]}
{[%emt 00:00:07]} h5 {[%clk 00:51:04]} {[%emt 00:00:54]} 35. Qb5 {[%clk
00:09:34]} {[%emt 00:00:05]} Ne4 {[%clk 00:50:15]} {[%emt 00:01:19]} 36. a6
{[%clk 00:09:57]} {[%emt 00:00:07]} Nxf2 {[%clk 00:50:30]} {[%emt 00:00:14]} 37.
a7 {[%clk 00:10:21]} {[%emt 00:00:07]} Kh6 {[%clk 00:49:46]} {[%emt 00:01:13]}
38. a8=Q {[%clk 00:10:31]} {[%emt 00:00:21]} g5 {[%clk 00:49:37]} {[%emt
00:00:38]} 39. Qf5 {[%clk 00:09:44]} {[%emt 00:01:17]} Kg7 {[%clk 00:49:28]}
{[%emt 00:00:36]} 40. Qxg5+ {[%clk 00:10:08]} {[%emt 00:00:09]} Kh7 {[%clk
00:49:45]} {[%emt 00:00:12]} 41. Qag8# {[%clk 00:10:28]} {[%emt 00:00:11]} 1-0

[Event "Mistrovství Čech mládeže 2023 - HD14"]
[Site "Harrachov, Czech Republic"]
[Date "2023.10.21"]
[Round "1.14"]
[White "Straka, René"]
[Black "Jakubše, Tamae Severína"]
[Result "0-1"]
[TimeControl "90m + 30s"]
[WhiteElo "1026"]
[BlackElo "1627"]

1. e4 {[%clk 01:30:54]} {[%emt 00:00:05]} e5 {[%clk 01:30:58]} {[%emt
00:00:02]} 2. Nf3 {[%clk 01:31:12]} {[%emt 00:00:12]} Nc6 {[%clk 01:31:21]}
{[%emt 00:00:07]} 3. Bc4 {[%clk 01:31:15]} {[%emt 00:00:27]} Bc5 {[%clk
01:31:40]} {[%emt 00:00:11]} 4. c3 {[%clk 01:31:12]} {[%emt 00:00:33]} Nf6
{[%clk 01:32:02]} {[%emt 00:00:08]} 5. d4 {[%clk 01:31:07]} {[%emt 00:00:35]}
exd4 {[%clk 01:32:20]} {[%emt 00:00:12]} 6. cxd4 {[%clk 01:31:28]} {[%emt
00:00:09]} Bb4+ {[%clk 01:32:40]} {[%emt 00:00:10]} 7. Nc3 {[%clk 01:31:08]}
{[%emt 00:00:50]} Nxe4 {[%clk 01:31:48]} {[%emt 00:01:22]} 8. O-O {[%clk
01:30:37]} {[%emt 00:01:01]} Bxc3 {[%clk 01:31:26]} {[%emt 00:00:53]} 9. bxc3
{[%clk 01:30:49]} {[%emt 00:00:19]} d5 {[%clk 01:29:41]} {[%emt 00:02:15]} 10.
Re1 {[%clk 01:29:24]} {[%emt 00:01:55]} O-O {[%clk 01:28:53]} {[%emt 00:01:18]}
11. Qc2 {[%clk 01:27:03]} {[%emt 00:02:50]} Bf5 {[%clk 01:15:22]} {[%emt
00:14:00]} 12. Bd3 {[%clk 01:24:22]} {[%emt 00:03:13]} Re8 {[%clk 01:12:53]}
{[%emt 00:02:59]} 13. Bf4 {[%clk 01:14:10]} {[%emt 00:10:41]} Bg6 {[%clk
01:07:06]} {[%emt 00:06:17]} 14. Re3 {[%clk 01:12:07]} {[%emt 00:02:33]} Nf6
{[%clk 01:00:59]} {[%emt 00:06:37]} 15. Rxe8+ {[%clk 01:08:33]} {[%emt
00:04:05]} Nxe8 {[%clk 01:00:34]} {[%emt 00:00:55]} 16. Re1 {[%clk 01:05:41]}
{[%emt 00:03:22]} Nd6 {[%clk 00:58:22]} {[%emt 00:02:42]} 17. Ne5 {[%clk
00:55:32]} {[%emt 00:10:39]} Nxe5 {[%clk 00:56:10]} {[%emt 00:02:42]} 18. Bxe5
{[%clk 00:51:05]} {[%emt 00:04:57]} Bxd3 {[%clk 00:53:58]} {[%emt 00:02:42]} 19.
Qxd3 {[%clk 00:51:25]} {[%emt 00:00:10]} f6 {[%clk 00:53:33]} {[%emt 00:00:56]}
20. Bxd6 {[%clk 00:48:56]} {[%emt 00:02:59]} Qxd6 {[%clk 00:53:51]} {[%emt
00:00:11]} 21. Qb5 {[%clk 00:48:49]} {[%emt 00:00:37]} Qc6 {[%clk 00:44:48]}
{[%emt 00:09:33]} 22. Qxc6 {[%clk 00:48:15]} {[%emt 00:01:04]} bxc6 {[%clk
00:45:12]} {[%emt 00:00:07]} 23. Re7 {[%clk 00:47:20]} {[%emt 00:01:24]} Rb8
{[%clk 00:44:29]} {[%emt 00:01:11]} 24. g3 {[%clk 00:47:10]} {[%emt 00:00:41]}
Rb7 {[%clk 00:44:23]} {[%emt 00:00:36]} 25. Kg2 {[%clk 00:46:26]} {[%emt
00:01:14]} h6 {[%clk 00:43:15]} {[%emt 00:01:39]} 26. g4 {[%clk 00:39:09]}
{[%emt 00:07:47]} Kh7 {[%clk 00:41:03]} {[%emt 00:02:42]} 27. h4 {[%clk
00:38:43]} {[%emt 00:00:57]} a5 {[%clk 00:40:43]} {[%emt 00:00:49]} 28. h5
{[%clk 00:38:26]} {[%emt 00:00:47]} a4 {[%clk 00:40:42]} {[%emt 00:00:31]} 29.
Kf3 {[%clk 00:37:16]} {[%emt 00:01:39]} a3 {[%clk 00:40:20]} {[%emt 00:00:52]}
30. Ke3 {[%clk 00:36:39]} {[%emt 00:01:08]} Rb2 {[%clk 00:32:59]} {[%emt
00:07:51]} 31. Rxc7 {[%clk 00:36:40]} {[%emt 00:00:29]} Rxa2 {[%clk 00:33:20]}
{[%emt 00:00:09]} 32. Rxc6 {[%clk 00:35:44]} {[%emt 00:01:26]} Rc2 {[%clk
00:32:03]} {[%emt 00:01:46]} 33. f4 {[%clk 00:29:40]} {[%emt 00:06:35]} a2
{[%clk 00:31:47]} {[%emt 00:00:47]} 34. Ra6 {[%clk 00:29:41]} {[%emt 00:00:29]}
Rxc3+ {[%clk 00:32:02]} {[%emt 00:00:15]} 35. Kd2 {[%clk 00:28:43]} {[%emt
00:01:28]} Rg3 {[%clk 00:31:35]} {[%emt 00:00:52]} 36. Kc2 {[%clk 00:26:52]}
{[%emt 00:02:25]} Rxg4 {[%clk 00:31:26]} {[%emt 00:00:40]} 37. Kb3 {[%clk
00:20:46]} {[%emt 00:06:36]} Rxf4 {[%clk 00:31:23]} {[%emt 00:00:33]} 38. Rxa2
{[%clk 00:21:00]} {[%emt 00:00:16]} Rxd4 {[%clk 00:31:20]} {[%emt 00:00:32]} 39.
Rh2 {[%clk 00:20:51]} {[%emt 00:00:38]} g6 {[%clk 00:29:38]} {[%emt 00:02:13]}
40. hxg6+ {[%clk 00:19:19]} {[%emt 00:02:02]} Kxg6 {[%clk 00:30:06]} {[%emt
00:00:02]} 41. Rg2+ {[%clk 00:19:17]} {[%emt 00:00:32]} Kf5 {[%clk 00:30:01]}
{[%emt 00:00:30]} 42. Rf2+ {[%clk 00:19:00]} {[%emt 00:00:52]} Rf4 {[%clk
00:30:22]} {[%emt 00:00:09]} 43. Rd2 {[%clk 00:18:50]} {[%emt 00:00:40]} d4
{[%clk 00:30:12]} {[%emt 00:00:40]} 0-1

[Event "Mistrovství Čech mládeže 2023 - HD14"]
[Site "Harrachov, Czech Republic"]
[Date "2023.10.21"]
[Round "1.15"]
[White "Slívová, Linda"]
[Black "Červinka, Vojtěch"]
[Result "1-0"]
[TimeControl "90m + 30s"]
[WhiteElo "1624"]
[BlackElo "1025"]

1. d4 {[%clk 01:30:57]} {[%emt 00:00:02]} d5 {[%clk 01:30:55]} {[%emt
00:00:05]} 2. Bf4 {[%clk 01:31:15]} {[%emt 00:00:12]} Bf5 {[%clk 01:30:51]}
{[%emt 00:00:34]} 3. Nf3 {[%clk 01:30:18]} {[%emt 00:01:27]} e6 {[%clk
01:28:57]} {[%emt 00:02:25]} 4. c4 {[%clk 01:27:21]} {[%emt 00:03:27]} Bb4+
{[%clk 01:26:14]} {[%emt 00:03:12]} 5. Nc3 {[%clk 01:25:33]} {[%emt 00:02:18]}
Nc6 {[%clk 01:21:51]} {[%emt 00:04:53]} 6. e3 {[%clk 01:18:36]} {[%emt
00:07:26]} Nge7 {[%clk 01:19:39]} {[%emt 00:02:41]} 7. a3 {[%clk 01:16:38]}
{[%emt 00:02:29]} Bxc3+ {[%clk 01:18:51]} {[%emt 00:01:18]} 8. bxc3 {[%clk
01:16:58]} {[%emt 00:00:10]} O-O {[%clk 01:17:30]} {[%emt 00:01:50]} 9. Qb3
{[%clk 01:08:06]} {[%emt 00:09:22]} b6 {[%clk 01:13:09]} {[%emt 00:04:52]} 10.
Be2 {[%clk 01:03:13]} {[%emt 00:05:22]} Na5 {[%clk 01:10:19]} {[%emt 00:03:21]}
11. Qa4 {[%clk 00:57:23]} {[%emt 00:06:21]} c6 {[%clk 01:08:38]} {[%emt
00:02:11]} 12. Nd2 {[%clk 00:44:19]} {[%emt 00:13:34]} Nb7 {[%clk 01:06:20]}
{[%emt 00:02:47]} 13. O-O {[%clk 00:43:24]} {[%emt 00:01:24]} c5 {[%clk
00:59:43]} {[%emt 00:07:08]} 14. Bg3 {[%clk 00:38:07]} {[%emt 00:05:47]} Qe8
{[%clk 00:55:56]} {[%emt 00:04:17]} 15. Qb3 {[%clk 00:37:19]} {[%emt 00:01:18]}
Qc6 {[%clk 00:54:05]} {[%emt 00:02:21]} 16. cxd5 {[%clk 00:31:33]} {[%emt
00:06:17]} Nxd5 {[%clk 00:52:26]} {[%emt 00:02:09]} 17. e4 {[%clk 00:31:04]}
{[%emt 00:00:58]} Na5 {[%clk 00:50:54]} {[%emt 00:02:03]} 18. Qb2 {[%clk
00:30:20]} {[%emt 00:01:14]} cxd4 {[%clk 00:50:23]} {[%emt 00:01:00]} 19. exd5
{[%clk 00:25:53]} {[%emt 00:04:57]} dxc3 {[%clk 00:49:58]} {[%emt 00:00:55]} 20.
dxc6 {[%clk 00:25:36]} {[%emt 00:00:47]} cxb2 {[%clk 00:50:14]} {[%emt
00:00:14]} 21. Ra2 {[%clk 00:25:25]} {[%emt 00:00:41]} b1=Q {[%clk 00:48:43]}
{[%emt 00:02:01]} 22. Nxb1 {[%clk 00:25:36]} {[%emt 00:00:19]} Nxc6 {[%clk
00:48:30]} {[%emt 00:00:44]} 23. Nc3 {[%clk 00:24:36]} {[%emt 00:01:29]} Rac8
{[%clk 00:47:12]} {[%emt 00:01:48]} 24. Nb5 {[%clk 00:23:45]} {[%emt 00:01:21]}
Rfd8 {[%clk 00:45:11]} {[%emt 00:02:30]} 25. Nd6 {[%clk 00:23:14]} {[%emt
00:01:00]} Ra8 {[%clk 00:44:39]} {[%emt 00:01:02]} 26. Bf3 {[%clk 00:22:32]}
{[%emt 00:01:12]} Rxd6 {[%clk 00:43:15]} {[%emt 00:01:54]} 27. Bxd6 {[%clk
00:22:51]} {[%emt 00:00:11]} Rd8 {[%clk 00:43:30]} {[%emt 00:00:15]} 28. Bxc6
{[%clk 00:22:23]} {[%emt 00:00:58]} Rxd6 {[%clk 00:43:52]} {[%emt 00:00:08]} 29.
Rc1 {[%clk 00:22:21]} {[%emt 00:00:31]} e5 {[%clk 00:43:49]} {[%emt 00:00:34]}
30. Be4 {[%clk 00:20:15]} {[%emt 00:02:36]} 1-0

[Event "Mistrovství Čech mládeže 2023 - HD14"]
[Site "Harrachov, Czech Republic"]
[Date "2023.10.21"]
[Round "1.16"]
[White "Martinkovičová, Nela"]
[Black "Stefaniv, Vladislav"]
[Result "0-1"]
[TimeControl "90m + 30s"]
[WhiteElo "1018"]
[BlackElo "1566"]

1. c4 {[%clk 01:30:41]} {[%emt 00:00:19]} e6 {[%clk 01:30:55]} {[%emt
00:00:05]} 2. g3 {[%clk 01:30:44]} {[%emt 00:00:27]} d5 {[%clk 01:30:42]}
{[%emt 00:00:43]} 3. Bg2 {[%clk 01:28:06]} {[%emt 00:03:07]} Nf6 {[%clk
01:30:27]} {[%emt 00:00:45]} 4. d4 {[%clk 01:26:01]} {[%emt 00:02:35]} Be7
{[%clk 01:29:42]} {[%emt 00:01:15]} 5. Nc3 {[%clk 01:25:13]} {[%emt 00:01:18]}
O-O {[%clk 01:28:40]} {[%emt 00:01:32]} 6. cxd5 {[%clk 01:24:53]} {[%emt
00:00:50]} exd5 {[%clk 01:28:53]} {[%emt 00:00:17]} 7. Bf4 {[%clk 01:24:31]}
{[%emt 00:00:51]} c6 {[%clk 01:26:49]} {[%emt 00:02:35]} 8. e4 {[%clk
01:23:05]} {[%emt 00:01:56]} dxe4 {[%clk 01:18:50]} {[%emt 00:08:30]} 9. Bxe4
{[%clk 01:19:04]} {[%emt 00:04:32]} Nxe4 {[%clk 01:18:05]} {[%emt 00:01:14]} 10.
Nxe4 {[%clk 01:17:39]} {[%emt 00:01:54]} Bb4+ {[%clk 01:11:38]} {[%emt
00:06:56]} 11. Nc3 {[%clk 01:17:20]} {[%emt 00:00:51]} Re8+ {[%clk 01:10:05]}
{[%emt 00:02:03]} 12. Nge2 {[%clk 01:16:34]} {[%emt 00:01:16]} Bg4 {[%clk
00:47:48]} {[%emt 00:22:47]} 13. Be3 {[%clk 01:14:59]} {[%emt 00:02:04]} Bxc3+
{[%clk 00:42:03]} {[%emt 00:06:16]} 14. bxc3 {[%clk 01:12:41]} {[%emt
00:02:48]} Qd5 {[%clk 00:42:25]} {[%emt 00:00:08]} 15. Rg1 {[%clk 01:11:56]}
{[%emt 00:01:16]} Qc4 {[%clk 00:42:11]} {[%emt 00:00:44]} 16. Qd2 {[%clk
01:10:50]} {[%emt 00:01:36]} Bxe2 {[%clk 00:42:15]} {[%emt 00:00:26]} 17. Rc1
{[%clk 01:04:25]} {[%emt 00:06:55]} Bf3 {[%clk 00:40:36]} {[%emt 00:02:07]} 18.
h4 {[%clk 01:03:51]} {[%emt 00:01:05]} h5 {[%clk 00:40:09]} {[%emt 00:00:57]}
19. Rc2 {[%clk 01:02:42]} {[%emt 00:01:38]} Nd7 {[%clk 00:39:47]} {[%emt
00:00:53]} 20. g4 {[%clk 01:02:46]} {[%emt 00:00:26]} Bxg4 {[%clk 00:37:35]}
{[%emt 00:02:42]} 21. Rg3 {[%clk 01:01:33]} {[%emt 00:01:43]} Nf6 {[%clk
00:36:16]} {[%emt 00:01:50]} 22. f3 {[%clk 01:00:22]} {[%emt 00:01:40]} Bf5
{[%clk 00:36:25]} {[%emt 00:00:21]} 23. Rb2 {[%clk 00:59:56]} {[%emt 00:00:57]}
Nd5 {[%clk 00:35:49]} {[%emt 00:01:06]} 24. Kf2 {[%clk 00:58:43]} {[%emt
00:01:43]} Rxe3 {[%clk 00:35:05]} {[%emt 00:01:14]} 25. Rb4 {[%clk 00:50:08]}
{[%emt 00:09:05]} Qxc3 {[%clk 00:32:59]} {[%emt 00:02:35]} 26. Qxc3 {[%clk
00:48:14]} {[%emt 00:02:24]} Rxc3 {[%clk 00:33:23]} {[%emt 00:00:07]} 27. Rxb7
{[%clk 00:48:17]} {[%emt 00:00:26]} Rc2+ {[%clk 00:32:46]} {[%emt 00:01:07]} 28.
Ke1 {[%clk 00:47:43]} {[%emt 00:01:02]} Re8+ {[%clk 00:33:00]} {[%emt
00:00:18]} 29. Kf1 {[%clk 00:47:29]} {[%emt 00:00:44]} Bd3+ {[%clk 00:33:23]}
{[%emt 00:00:07]} 0-1

[Event "Mistrovství Čech mládeže 2023 - HD14"]
[Site "Harrachov, Czech Republic"]
[Date "2023.10.21"]
[Round "1.17"]
[White "Sboev, Kirill"]
[Black "Krátká, Tereza"]
[Result "1-0"]
[TimeControl "90m + 30s"]
[WhiteElo "1556"]
[BlackElo "1017"]

1. d4 {[%clk 01:30:58]} {[%emt 00:00:02]} d5 {[%clk 01:30:44]} {[%emt
00:00:16]} 2. c4 {[%clk 01:31:21]} {[%emt 00:00:06]} c6 {[%clk 01:30:57]}
{[%emt 00:00:17]} 3. Nc3 {[%clk 01:31:45]} {[%emt 00:00:07]} Nf6 {[%clk
01:30:57]} {[%emt 00:00:30]} 4. Nf3 {[%clk 01:32:09]} {[%emt 00:00:06]} Bf5
{[%clk 01:30:38]} {[%emt 00:00:48]} 5. cxd5 {[%clk 01:32:30]} {[%emt 00:00:10]}
cxd5 {[%clk 01:30:30]} {[%emt 00:00:36]} 6. Qb3 {[%clk 01:32:53]} {[%emt
00:00:09]} Qd7 {[%clk 01:29:56]} {[%emt 00:01:04]} 7. Ne5 {[%clk 01:30:21]}
{[%emt 00:03:02]} Qc7 {[%clk 01:28:32]} {[%emt 00:01:54]} 8. Nxd5 {[%clk
01:28:08]} {[%emt 00:02:42]} Nxd5 {[%clk 01:28:46]} {[%emt 00:00:17]} 9. Qxd5
{[%clk 01:28:25]} {[%emt 00:00:13]} e6 {[%clk 01:28:52]} {[%emt 00:00:24]} 10.
Qb5+ {[%clk 01:27:55]} {[%emt 00:01:01]} Nc6 {[%clk 01:28:39]} {[%emt
00:00:44]} 11. Bf4 {[%clk 01:23:59]} {[%emt 00:04:25]} Bb4+ {[%clk 01:27:54]}
{[%emt 00:01:14]} 12. Kd1 {[%clk 01:18:21]} {[%emt 00:06:09]} Bd6 {[%clk
01:23:37]} {[%emt 00:04:46]} 13. Nxc6 {[%clk 01:15:14]} {[%emt 00:03:37]} bxc6
{[%clk 01:23:06]} {[%emt 00:01:01]} 14. Bxd6 {[%clk 01:15:34]} {[%emt
00:00:11]} Qxd6 {[%clk 01:22:57]} {[%emt 00:00:39]} 15. Qc5 {[%clk 01:10:52]}
{[%emt 00:05:12]} Qxc5 {[%clk 01:21:47]} {[%emt 00:01:40]} 16. dxc5 {[%clk
01:11:16]} {[%emt 00:00:06]} Rd8+ {[%clk 01:21:55]} {[%emt 00:00:22]} 17. Ke1
{[%clk 01:10:28]} {[%emt 00:01:18]} O-O {[%clk 01:22:04]} {[%emt 00:00:22]} 18.
e3 {[%clk 01:10:01]} {[%emt 00:00:57]} Rd5 {[%clk 01:21:27]} {[%emt 00:01:06]}
19. b4 {[%clk 01:10:05]} {[%emt 00:00:26]} Rb8 {[%clk 01:21:01]} {[%emt
00:00:56]} 20. a3 {[%clk 01:09:20]} {[%emt 00:01:15]} h6 {[%clk 01:19:23]}
{[%emt 00:02:09]} 21. Bc4 {[%clk 01:09:16]} {[%emt 00:00:34]} Rd7 {[%clk
01:16:50]} {[%emt 00:03:03]} 22. Ke2 {[%clk 01:08:52]} {[%emt 00:02:37]} Rbd8
{[%clk 01:17:52]} {[%emt 00:01:26]} 23. Rhd1 {[%clk 01:08:52]} {[%emt
00:00:31]} Bc2 {[%clk 01:17:24]} {[%emt 00:00:57]} 24. Rxd7 {[%clk 01:08:58]}
{[%emt 00:00:24]} Rxd7 {[%clk 01:17:45]} {[%emt 00:00:09]} 25. Rc1 {[%clk
01:08:53]} {[%emt 00:00:35]} Bg6 {[%clk 01:16:57]} {[%emt 00:01:17]} 26. Rd1
{[%clk 01:08:16]} {[%emt 00:01:08]} Bh5+ {[%clk 01:16:21]} {[%emt 00:01:06]} 27.
f3 {[%clk 01:08:31]} {[%emt 00:00:15]} Rc7 {[%clk 01:15:24]} {[%emt 00:01:26]}
28. Rd8+ {[%clk 01:07:48]} {[%emt 00:01:13]} Kh7 {[%clk 01:14:30]} {[%emt
00:01:24]} 29. Bd3+ {[%clk 01:07:55]} {[%emt 00:00:23]} f5 {[%clk 01:13:43]}
{[%emt 00:01:18]} 30. Rd6 {[%clk 01:07:51]} {[%emt 00:00:34]} Be8 {[%clk
01:13:17]} {[%emt 00:00:55]} 31. Rxe6 {[%emt 00:01:48]} 1-0